fUSD/lending_fUSD_20240223
["ID","MTS","AMOUNT","RATE_DAILY","PERIOD"]
[314979371,1708714239623,-504.516933,0.00027397,2]
[314979372,1708714239632,-500.0,0.00027397,2]
[314979373,1708714239641,-500.0,0.00027397,2]
[314979374,1708714239651,-501.65377095,0.00027397,2]
[314979375,1708714239660,-512.62156315,0.00027397,2]
[314979376,1708714239670,-500.0,0.00027397,2]
[314979377,1708714239679,-500.0,0.00027397,2]
[314979378,1708714239689,-500.0,0.00027397,2]
[314979379,1708714239698,-501.20450806,0.00027397,2]
[314979380,1708714239707,-500.0,0.00027397,2]
[314979381,1708714239717,-500.0,0.00027397,2]
[314979382,1708714239726,-500.0,0.00027397,2]
[314979383,1708714239735,-500.0,0.00027397,2]
[314979384,1708714239745,-513.03360762,0.00027397,2]
[314979385,1708714239756,-500.0,0.00027397,2]
[314979386,1708714239765,-500.0,0.00027397,2]
[314979387,1708714239774,-500.0,0.00027397,2]
[314979388,1708714239783,-500.0,0.00027397,2]
[314979389,1708714239792,-509.73380263,0.00027397,2]
[314979390,1708714239801,-500.0,0.00027397,2]
[314979391,1708714239811,-500.0,0.00027397,2]
[314979392,1708714239820,-500.0,0.00027397,2]
[314979393,1708714239830,-505.10653084,0.00027397,2]
[314979394,1708714239839,-500.0,0.00027397,2]
[314979395,1708714239849,-500.0,0.00027397,2]
[314979396,1708714239858,-506.11237836,0.00027397,2]
[314979397,1708714239868,-505.07997014,0.00027397,2]
[314979398,1708714239878,-500.0,0.00027397,2]
[314979399,1708714239887,-500.0,0.00027397,2]
[314979400,1708714239897,-500.0,0.00027397,2]
[314979401,1708714239907,-500.0,0.00027397,2]
[314979402,1708714239916,-505.94484452,0.00027397,2]
[314979403,1708714239925,-500.0,0.00027397,2]
[314979404,1708714239934,-357.86009894,0.00027397,2]
[314979405,1708714239944,-504.86146436,0.00027397,2]
[314979411,1708714240178,-500.0,0.00027397,2]
[314979412,1708714240188,-500.0,0.00027397,2]
[314979413,1708714240197,-500.0,0.00027397,2]
[314979414,1708714240207,-584.30200927,0.00027397,2]
[314979415,1708714240216,-505.79603269,0.00027397,2]
[314979416,1708714240226,-500.0,0.00027397,2]
[314979417,1708714240235,-245.7578034,0.00027397,2]
[314979418,1708714240245,-500.0,0.00027397,2]
[314979421,1708714240256,-500.0,0.00027397,2]
[314979423,1708714240265,-525.26676921,0.00027397,2]
[314979425,1708714240274,-500.0,0.00027397,2]
[314979426,1708714240284,-500.0,0.00027397,2]
[314979427,1708714240293,-500.0,0.00027397,2]
[314979428,1708714240303,-500.0,0.00027397,2]
[314979429,1708714240313,-500.0,0.00027397,2]
[314979430,1708714240323,-502.55680996,0.00027397,2]
[314979431,1708714240332,-500.0,0.00027397,2]
[314979432,1708714240342,-500.0,0.00027397,2]
[314979433,1708714240352,-500.0,0.00027397,2]
[314979434,1708714240361,-500.0,0.00027397,2]
[314979435,1708714240371,-500.0,0.00027397,2]
[314979436,1708714240380,-500.0,0.00027397,2]
[314979437,1708714240390,-500.0,0.00027397,2]
[314979438,1708714240400,-500.0,0.00027397,2]
[314979439,1708714240409,-501.2989252,0.00027397,2]
[314979440,1708714240418,-500.0,0.00027397,2]
[314979442,1708714240428,-500.0,0.00027397,2]
[314979444,1708714240441,-500.0,0.00027397,2]
[314979445,1708714240450,-530.94387427,0.00027397,2]
[314979446,1708714240460,-500.0,0.00027397,2]
[314979447,1708714240470,-500.0,0.00027397,2]
[314979448,1708714240479,-500.0,0.00027397,2]
[314979449,1708714240492,-500.0,0.00027397,2]
[314979450,1708714240502,-500.0,0.00027397,2]
[314979451,1708714240512,-500.0,0.00027397,2]
[314979452,1708714240521,-279.03924084,0.00027397,2]
[314979453,1708714240532,-500.0,0.00027397,2]
[314979454,1708714240542,-500.0,0.00027397,2]
[314979455,1708714240552,-500.0,0.00027397,2]
[314979456,1708714240562,-500.0,0.00027397,2]
[314979457,1708714240571,-500.0,0.00027397,2]
[314979458,1708714240581,-500.0,0.00027397,2]
[314979459,1708714240592,-1498.4765861,0.00027397,2]
[314979460,1708714240602,-500.0,0.00027397,2]
[314979461,1708714240611,-500.0,0.00027397,2]
[314979462,1708714240620,-500.0,0.00027397,2]
[314979463,1708714240630,-513.1591582,0.00027397,2]
[314979464,1708714240639,-500.0,0.00027397,2]
[314979465,1708714240649,-500.0,0.00027397,2]
[314979466,1708714240658,-500.0,0.00027397,2]
[314979467,1708714240667,-505.09801893,0.00027397,2]
[314979468,1708714240677,-501.94505291,0.00027397,2]
[314979469,1708714240686,-503.4828305,0.00027397,2]
[314979470,1708714240695,-500.0,0.00027397,2]
[314979471,1708714240705,-511.80965262,0.00027397,2]
[314979472,1708714240714,-510.03945594,0.00027397,2]
[314979473,1708714240724,-500.0,0.00027397,2]
[314979474,1708714240734,-500.0,0.00027397,2]
[314979475,1708714240743,-500.0,0.00027397,2]
[314979476,1708714240752,-502.76957928,0.00027397,2]
[314979477,1708714240763,-500.0,0.00027397,2]
[314979478,1708714240772,-500.0,0.00027397,2]
[314979479,1708714240782,-500.0,0.00027397,2]
[314979480,1708714240791,-500.0,0.00027397,2]
[314979481,1708714240801,-500.0,0.00027397,2]
[314979482,1708714240810,-500.0,0.00027397,2]
[314979483,1708714240819,-500.0,0.00027397,2]
[314979484,1708714240829,-507.5194428,0.00027397,2]
[314979485,1708714240838,-501.73842034,0.00027397,2]
[314979486,1708714240847,-514.20159457,0.00027397,2]
[314979487,1708714240857,-500.0,0.00027397,2]
[314979488,1708714240867,-500.0,0.00027397,2]
[314979489,1708714240877,-504.38281921,0.00027397,2]
[314979490,1708714240886,-500.0,0.00027397,2]
[314979491,1708714240895,-519.48601462,0.00027397,2]
[314979492,1708714240905,-500.0,0.00027397,2]
[314979493,1708714240914,-501.37701795,0.00027397,2]
[314979494,1708714240924,-561.62008962,0.00027397,2]
[314979495,1708714240935,-500.0,0.00027397,2]
[314979496,1708714240944,-502.59546443,0.00027397,2]
[314979497,1708714240954,-500.0,0.00027397,2]
[314979498,1708714240963,-515.68573856,0.00027397,2]
[314979499,1708714240972,-502.2340817,0.00027397,2]
[314979500,1708714240982,-500.0,0.00027397,2]
[314979501,1708714240991,-504.89033219,0.00027397,2]
[314979502,1708714241001,-506.56247359,0.00027397,2]
[314979503,1708714241011,-500.0,0.00027397,2]
[314979504,1708714241020,-505.97238936,0.00027397,2]
[314979505,1708714241030,-508.55432009,0.00027397,2]
[314979506,1708714241040,-500.0,0.00027397,2]
[314979507,1708714241049,-500.0,0.00027397,2]
[314979508,1708714241058,-500.0,0.00027397,2]
[314979509,1708714241068,-509.29883836,0.00027397,2]
[314979510,1708714241077,-500.0,0.00027397,2]
[314979511,1708714241087,-504.7666719,0.00027397,2]
[314979512,1708714241096,-500.0,0.00027397,2]
[314979513,1708714241105,-500.0,0.00027397,2]
[314979514,1708714241114,-500.0,0.00027397,2]
[314979515,1708714241124,-502.13499899,0.00027397,2]
[314979516,1708714241133,-507.86289655,0.00027397,2]
[314979517,1708714241142,-506.31586452,0.00027397,2]
[314979518,1708714241151,-500.0,0.00027397,2]
[314979519,1708714241161,-505.08501988,0.00027397,2]
[314979520,1708714241170,-502.03121829,0.00027397,2]
[314979521,1708714241180,-500.0,0.00027397,2]
[314979522,1708714241189,-572.76480413,0.00027397,2]
[314979523,1708714241199,-175.19493421,0.00027397,2]
[314979524,1708714241209,-500.0,0.00027397,2]
[314979525,1708714241219,-500.0,0.00027397,2]
[314979526,1708714241229,-504.13206182,0.00027397,2]
[314979528,1708714241239,-501.80108313,0.00027397,2]
[314979530,1708714241248,-500.0,0.00027397,2]
[314979532,1708714241259,-504.82825033,0.00027397,2]
[314979534,1708714241268,-501.8376817,0.00027397,2]
[314979535,1708714241278,-500.0,0.00027397,2]
[314979538,1708714241288,-500.0,0.00027397,2]
[314979540,1708714241298,-501.65826332,0.00027397,2]
[314979541,1708714241307,-511.31485574,0.00027397,2]
[314979543,1708714241316,-500.0,0.00027397,2]
[314979545,1708714241325,-500.0,0.00027397,2]
[314979547,1708714241334,-509.59457177,0.00027397,2]
[314979549,1708714241343,-442.39272935,0.00027397,2]
[314979550,1708714241353,-502.22742044,0.00027397,2]
[314979552,1708714241363,-515.96142468,0.00027397,2]
[314979554,1708714241372,-511.7186493,0.00027397,2]
[314979555,1708714241382,-500.06781304,0.00027397,2]
[314979556,1708714241391,-178.48829761,0.00027397,2]
[314979557,1708714241400,-500.0,0.00027397,2]
[314979558,1708714241409,-500.0,0.00027397,2]
[314979559,1708714241418,-500.0,0.00027397,2]
[314979560,1708714241427,-510.58063223,0.00027397,2]
[314979561,1708714241436,-500.0,0.00027397,2]
[314979562,1708714241445,-515.12579578,0.00027397,2]
[314979563,1708714241455,-500.0,0.00027397,2]
[314979564,1708714241464,-556.11433352,0.00027397,2]
[314979565,1708714241474,-503.41300611,0.00027397,2]
[314979566,1708714241484,-500.0,0.00027397,2]
[314979567,1708714241495,-505.62192401,0.00027397,2]
[314979568,1708714241504,-500.0,0.00027397,2]
[314979569,1708714241513,-503.24733786,0.00027397,2]
[314979570,1708714241522,-500.0,0.00027397,2]
[314979571,1708714241534,-506.56950255,0.00027397,2]
[314979572,1708714241544,-500.0,0.00027397,2]
[314979573,1708714241553,-500.0,0.00027397,2]
[314979574,1708714241564,-502.26935453,0.00027397,2]
[314979575,1708714241574,-515.77680012,0.00027397,2]
[314979576,1708714241583,-503.19804857,0.00027397,2]
[314979577,1708714241592,-500.65860745,0.00027397,2]
[314979578,1708714241601,-500.0,0.00027397,2]
[314979579,1708714241611,-514.70805539,0.00027397,2]
[314979580,1708714241620,-213.32718442,0.00027397,2]
[314979581,1708714241629,-507.18686864,0.00027397,2]
[314979582,1708714241638,-500.0,0.00027397,2]
[314979583,1708714241647,-503.8304225,0.00027397,2]
[314979584,1708714241656,-512.47405123,0.00027397,2]
[314979585,1708714241665,-500.0,0.00027397,2]
[314979586,1708714241674,-168.85625237,0.00027397,2]
[314979587,1708714241683,-506.61945599,0.00027397,2]
[314979588,1708714241692,-500.0,0.00027397,2]
[314979589,1708714241702,-500.0,0.00027397,2]
[314979590,1708714241711,-509.55133843,0.00027397,2]
[314979591,1708714241720,-504.0380682,0.00027397,2]
[314979592,1708714241729,-324.35579631,0.00027397,2]
[314979593,1708714241739,-502.85020239,0.00027397,2]
[314979594,1708714241748,-500.0,0.00027397,2]
[314979595,1708714241759,-500.0,0.00027397,2]
[314979596,1708714241768,-500.0,0.00027397,2]
[314979597,1708714241777,-528.52860573,0.00027397,2]
[314979598,1708714241786,-500.0,0.00027397,2]
[314979599,1708714241796,-509.16313379,0.00027397,2]
[314979600,1708714241805,-527.8443911,0.00027397,2]
[314979601,1708714241814,-500.0,0.00027397,2]
[314979602,1708714241823,-506.96482144,0.00027397,2]
[314979603,1708714241833,-500.0,0.00027397,2]
[314979604,1708714241842,-500.0,0.00027397,2]
[314979605,1708714241851,-510.64352848,0.00027397,2]
[314979606,1708714241860,-500.0,0.00027397,2]
[314979607,1708714241870,-500.0,0.00027397,2]
[314979608,1708714241879,-393.30021474,0.00027397,2]
[314979609,1708714241888,-508.22584596,0.00027397,2]
[314979610,1708714241897,-500.0,0.00027397,2]
[314979611,1708714241906,-500.0,0.00027397,2]
[314979612,1708714241916,-500.0,0.00027397,2]
[314979613,1708714241925,-500.0,0.00027397,2]
[314979614,1708714241934,-500.0,0.00027397,2]
[314979615,1708714241944,-363.53687841,0.00027397,2]
[314979616,1708714241954,-500.0,0.00027397,2]
[314979617,1708714241963,-500.0,0.00027397,2]
[314979618,1708714241972,-500.0,0.00027397,2]
[314979619,1708714241982,-500.0,0.00027397,2]
[314979620,1708714241991,-500.0,0.00027397,2]
[314979621,1708714242000,-500.0,0.00027397,2]
[314979622,1708714242011,-502.98109829,0.00027397,2]
[314979623,1708714242020,-500.0,0.00027397,2]
[314979624,1708714242029,-316.84251062,0.00027397,2]
[314979625,1708714242039,-510.61178109,0.00027397,2]
[314979626,1708714242049,-500.0,0.00027397,2]
[314979627,1708714242058,-500.0,0.00027397,2]
[314979628,1708714242067,-500.0,0.00027397,2]
[314979629,1708714242077,-500.0,0.00027397,2]
[314979630,1708714242086,-500.0,0.00027397,2]
[314979631,1708714242096,-500.0,0.00027397,2]
[314979632,1708714242106,-504.62375752,0.00027397,2]
[314979633,1708714242115,-500.0,0.00027397,2]
[314979634,1708714242128,-500.0,0.00027397,2]
[314979635,1708714242138,-500.0,0.00027397,2]
[314979636,1708714242148,-500.0,0.00027397,2]
[314979637,1708714242158,-500.0,0.00027397,2]
[314979638,1708714242168,-560.83963716,0.00027397,2]
[314979639,1708714242177,-500.0,0.00027397,2]
[314979640,1708714242187,-369.69299405,0.00027397,2]
[314979641,1708714242197,-504.36696045,0.00027397,2]
[314979642,1708714242206,-500.0,0.00027397,2]
[314979643,1708714242215,-500.0,0.00027397,2]
[314979644,1708714242225,-500.0,0.00027397,2]
[314979645,1708714242235,-500.0,0.00027397,2]
[314979646,1708714242245,-507.06365402,0.00027397,2]
[314979647,1708714242267,-500.0,0.00027397,2]
[314979648,1708714242277,-500.0,0.00027397,2]
[314979649,1708714242287,-500.0,0.00027397,2]
[314979650,1708714242296,-501.91215636,0.00027397,2]
[314979651,1708714242306,-150.0,0.00027397,2]
[314979652,1708714242316,-500.0,0.00027397,2]
[314979653,1708714242327,-502.25484728,0.00027397,2]
[314979654,1708714242336,-500.0,0.00027397,2]
[314979655,1708714242345,-500.0,0.00027397,2]
[314979656,1708714242355,-500.0,0.00027397,2]
[314979657,1708714242365,-500.0,0.00027397,2]
[314979658,1708714242374,-500.0,0.00027397,2]
[314979659,1708714242384,-503.1125285,0.00027397,2]
[314979660,1708714242393,-500.0,0.00027397,2]
[314979661,1708714242403,-500.0,0.00027397,2]
[314979662,1708714242412,-500.0,0.00027397,2]
[314979663,1708714242422,-502.9531963,0.00027397,2]
[314979665,1708714242432,-500.0,0.00027397,2]
[314979667,1708714242441,-504.18035296,0.00027397,2]
[314979668,1708714242450,-504.45037132,0.00027397,2]
[314979669,1708714242459,-500.0,0.00027397,2]
[314979670,1708714242469,-511.67674691,0.00027397,2]
[314979671,1708714242479,-500.0,0.00027397,2]
[314979673,1708714242493,-500.0,0.00027397,2]
[314979675,1708714242503,-500.0,0.00027397,2]
[314979677,1708714242513,-500.0,0.00027397,2]
[314979679,1708714242523,-500.0,0.00027397,2]
[314979680,1708714242533,-514.93686514,0.00027397,2]
[314979681,1708714242542,-500.0,0.00027397,2]
[314979682,1708714242551,-303.60202404,0.00027397,2]
[314979683,1708714242560,-500.0,0.00027397,2]
[314979684,1708714242569,-500.0,0.00027397,2]
[314979685,1708714242579,-500.0,0.00027397,2]
[314979686,1708714242588,-500.0,0.00027397,2]
[314979687,1708714242597,-500.0,0.00027397,2]
[314979689,1708714242607,-500.0,0.00027397,2]
[314979690,1708714242615,-500.0,0.00027397,2]
[314979692,1708714242625,-502.07820547,0.00027397,2]
[314979694,1708714242634,-500.0,0.00027397,2]
[314979695,1708714242644,-500.0,0.00027397,2]
[314979696,1708714242654,-500.0,0.00027397,2]
[314979697,1708714242663,-500.0,0.00027397,2]
[314979698,1708714242673,-197.9881035,0.00027397,2]
[314979699,1708714242682,-500.0,0.00027397,2]
[314979700,1708714242692,-500.0,0.00027397,2]
[314979701,1708714242701,-500.0,0.00027397,2]
[314979702,1708714242710,-500.0,0.00027397,2]
[314979703,1708714242719,-500.0,0.00027397,2]
[314979704,1708714242729,-500.0,0.00027397,2]
[314979705,1708714242738,-500.0,0.00027397,2]
[314979706,1708714242748,-500.0,0.00027397,2]
[314979707,1708714242757,-500.0,0.00027397,2]
[314979708,1708714242767,-500.0,0.00027397,2]
[314979709,1708714242776,-193.31431251,0.00027397,2]
[314979710,1708714242786,-500.0,0.00027397,2]
[314979711,1708714242795,-500.0,0.00027397,2]
[314979712,1708714242805,-500.0,0.00027397,2]
[314979713,1708714242815,-500.0,0.00027397,2]
[314979714,1708714242824,-500.0,0.00027397,2]
[314979715,1708714242834,-500.0,0.00027397,2]
[314979716,1708714242843,-500.0,0.00027397,2]
[314979717,1708714242854,-502.34984282,0.00027397,2]
[314979718,1708714242863,-500.0,0.00027397,2]
[314979719,1708714242873,-500.0,0.00027397,2]
[314979720,1708714242883,-500.0,0.00027397,2]
[314979721,1708714242893,-500.0,0.00027397,2]
[314979722,1708714242902,-501.59928126,0.00027397,2]
[314979723,1708714242912,-500.97074531,0.00027397,2]
[314979724,1708714242921,-500.0,0.00027397,2]
[314979725,1708714242930,-500.0,0.00027397,2]
[314979726,1708714242939,-502.39877306,0.00027397,2]
[314979727,1708714242950,-500.0,0.00027397,2]
[314979728,1708714242963,-504.44060646,0.00027397,2]
[314979729,1708714242973,-500.0,0.00027397,2]
[314979730,1708714242982,-500.0,0.00027397,2]
[314979731,1708714242992,-285.45843864,0.00027397,2]
[314979732,1708714243002,-500.0,0.00027397,2]
[314979733,1708714243012,-500.0,0.00027397,2]
[314979734,1708714243022,-500.0,0.00027397,2]
[314979735,1708714243031,-502.73944623,0.00027397,2]
[314979736,1708714243041,-500.0,0.00027397,2]
[314979737,1708714243050,-500.0,0.00027397,2]
[314979738,1708714243060,-500.0,0.00027397,2]
[314979739,1708714243069,-500.0,0.00027397,2]
[314979740,1708714243079,-500.0,0.00027397,2]
[314979742,1708714243089,-500.0,0.00027397,2]
[314979744,1708714243098,-500.0,0.00027397,2]
[314979745,1708714243107,-502.42550257,0.00027397,2]
[314979746,1708714243117,-500.0,0.00027397,2]
[314979747,1708714243127,-500.0,0.00027397,2]
[314979748,1708714243136,-500.0,0.00027397,2]
[314979750,1708714243149,-500.0,0.00027397,2]
[314979751,1708714243158,-500.0,0.00027397,2]
[314979752,1708714243168,-500.0,0.00027397,2]
[314979753,1708714243177,-500.0,0.00027397,2]
[314979754,1708714243187,-500.0,0.00027397,2]
[314979755,1708714243197,-500.0,0.00027397,2]
[314979756,1708714243207,-500.0,0.00027397,2]
[314979757,1708714243216,-189.08077734,0.00027397,2]
[314979758,1708714243226,-500.0,0.00027397,2]
[314979759,1708714243236,-503.10035915,0.00027397,2]
[314979760,1708714243246,-500.0,0.00027397,2]
[314979761,1708714243256,-500.0,0.00027397,2]
[314979762,1708714243266,-500.0,0.00027397,2]
[314979763,1708714243275,-500.0,0.00027397,2]
[314979764,1708714243284,-501.58865959,0.00027397,2]
[314979765,1708714243294,-500.0,0.00027397,2]
[314979766,1708714243303,-500.0,0.00027397,2]
[314979767,1708714243313,-500.0,0.00027397,2]
[314979768,1708714243322,-523.38692074,0.00027397,2]
[314979769,1708714243332,-153.94587009,0.00027397,2]
[314979770,1708714243341,-500.0,0.00027397,2]
[314979771,1708714243351,-500.0,0.00027397,2]
[314979772,1708714243361,-501.89050517,0.00027397,2]
[314979773,1708714243371,-500.0,0.00027397,2]
[314979774,1708714243380,-500.0,0.00027397,2]
[314979775,1708714243389,-500.0,0.00027397,2]
[314979776,1708714243399,-500.0,0.00027397,2]
[314979777,1708714243408,-500.0,0.00027397,2]
[314979778,1708714243418,-502.84918059,0.00027397,2]
[314979779,1708714243427,-500.0,0.00027397,2]
[314979780,1708714243436,-506.2639918,0.00027397,2]
[314979781,1708714243446,-158.29254443,0.00027397,2]
[314979782,1708714243581,-341.70745557,0.00027397,2]
[314979783,1708714243591,-16.30452411,0.00027397,2]
[314979784,1708714243603,-483.69547589,0.00027397,2]
[314979785,1708714243612,-500.0,0.00027397,2]
[314979786,1708714243621,-289.49688785,0.00027397,2]
[314979787,1708714243638,-210.50311215,0.00027397,2]
[314979788,1708714243647,-500.0,0.00027397,2]
[314979789,1708714243657,-502.90900339,0.00027397,2]
[314979790,1708714243667,-500.0,0.00027397,2]
[314979791,1708714243676,-500.0,0.00027397,2]
[314979792,1708714243685,-500.0,0.00027397,2]
[314979793,1708714243694,-500.0,0.00027397,2]
[314979794,1708714243703,-500.0,0.00027397,2]
[314979795,1708714243713,-500.0,0.00027397,2]
[314979796,1708714243722,-500.0,0.00027397,2]
[314979797,1708714243731,-500.0,0.00027397,2]
[314979798,1708714243741,-500.0,0.00027397,2]
[314979799,1708714243750,-500.0,0.00027397,2]
[314979800,1708714243760,-500.0,0.00027397,2]
[314979801,1708714243769,-500.0,0.00027397,2]
[314979802,1708714243779,-501.73980691,0.00027397,2]
[314979803,1708714243788,-500.0,0.00027397,2]
[314979804,1708714243798,-522.83998774,0.00027397,2]
[314979805,1708714243807,-500.0,0.00027397,2]
[314979806,1708714243817,-502.7111324,0.00027397,2]
[314979807,1708714243826,-500.0,0.00027397,2]
[314979808,1708714243836,-500.0,0.00027397,2]
[314979809,1708714243846,-500.0,0.00027397,2]
[314979810,1708714243855,-504.90977166,0.00027397,2]
[314979811,1708714243867,-500.0,0.00027397,2]
[314979812,1708714243876,-500.0,0.00027397,2]
[314979813,1708714243886,-502.77189853,0.00027397,2]
[314979814,1708714243895,-500.0,0.00027397,2]
[314979815,1708714243905,-500.0,0.00027397,2]
[314979816,1708714243915,-500.0,0.00027397,2]
[314979817,1708714243925,-500.0,0.00027397,2]
[314979818,1708714243935,-500.0,0.00027397,2]
[314979819,1708714243945,-500.0,0.00027397,2]
[314979820,1708714243954,-500.0,0.00027397,2]
[314979821,1708714243964,-500.0,0.00027397,2]
[314979822,1708714243974,-500.0,0.00027397,2]
[314979823,1708714243983,-500.0,0.00027397,2]
[314979824,1708714243993,-500.0,0.00027397,2]
[314979825,1708714244002,-500.0,0.00027397,2]
[314979826,1708714244013,-502.86446927,0.00027397,2]
[314979827,1708714244026,-500.0,0.00027397,2]
[314979828,1708714244037,-500.0,0.00027397,2]
[314979829,1708714244047,-500.0,0.00027397,2]
[314979830,1708714244056,-500.0,0.00027397,2]
[314979831,1708714244065,-500.0,0.00027397,2]
[314979832,1708714244075,-500.0,0.00027397,2]
[314979833,1708714244084,-500.0,0.00027397,2]
[314979834,1708714244094,-500.0,0.00027397,2]
[314979835,1708714244104,-500.0,0.00027397,2]
[314979836,1708714244113,-500.0,0.00027397,2]
[314979837,1708714244123,-500.0,0.00027397,2]
[314979838,1708714244133,-500.0,0.00027397,2]
[314979839,1708714244143,-500.0,0.00027397,2]
[314979840,1708714244152,-500.0,0.00027397,2]
[314979841,1708714244162,-500.0,0.00027397,2]
[314979842,1708714244173,-500.0,0.00027397,2]
[314979843,1708714244182,-1000.0,0.00027397,2]
[314979844,1708714244441,-501.50230777,0.00027397,2]
[314979845,1708714244451,-501.17351075,0.00027397,2]
[314979846,1708714244461,-500.0,0.00027397,2]
[314979847,1708714244470,-500.0,0.00027397,2]
[314979848,1708714244483,-500.0,0.00027397,2]
[314979849,1708714244492,-604.9967079,0.00027397,2]
[314979850,1708714244501,-500.0,0.00027397,2]
[314979851,1708714244512,-500.0,0.00027397,2]
[314979852,1708714244523,-506.76502971,0.00027397,2]
[314979853,1708714244532,-500.0,0.00027397,2]
[314979854,1708714244542,-500.0,0.00027397,2]
[314979855,1708714244552,-212.43844282,0.00027397,2]
[314979856,1708714244562,-500.0,0.00027397,2]
[314979857,1708714244572,-500.0,0.00027397,2]
[314979858,1708714244581,-500.0,0.00027397,2]
[314979859,1708714244591,-500.0,0.00027397,2]
[314979860,1708714244600,-500.0,0.00027397,2]
[314979861,1708714244609,-500.0,0.00027397,2]
[314979862,1708714244618,-500.0,0.00027397,2]
[314979863,1708714244627,-500.0,0.00027397,2]
[314979864,1708714244636,-500.0,0.00027397,2]
[314979865,1708714244646,-500.0,0.00027397,2]
[314979866,1708714244655,-500.0,0.00027397,2]
[314979867,1708714244664,-500.0,0.00027397,2]
[314979868,1708714244674,-500.0,0.00027397,2]
[314979869,1708714244685,-200.08347542,0.00027397,2]
[314979870,1708714244695,-500.0,0.00027397,2]
[314979871,1708714244704,-500.0,0.00027397,2]
[314979872,1708714244714,-772.8,0.00027397,2]
[314979873,1708714244723,-500.0,0.00027397,2]
[314979874,1708714244732,-500.0,0.00027397,2]
[314979875,1708714244742,-500.0,0.00027397,2]
[314979876,1708714244751,-381.07320295,0.00027397,2]
[314979877,1708714244768,-500.0,0.00027397,2]
[314979878,1708714244784,-500.0,0.00027397,2]
[314979879,1708714244794,-500.0,0.00027397,2]
[314979880,1708714244804,-511.83624277,0.00027397,2]
[314979881,1708714244814,-500.0,0.00027397,2]
[314979882,1708714244824,-500.0,0.00027397,2]
[314979883,1708714244834,-500.0,0.00027397,2]
[314979884,1708714244843,-500.0,0.00027397,2]
[314979885,1708714244854,-541.08868424,0.00027397,2]
[314979886,1708714244864,-501.12717371,0.00027397,2]
[314979887,1708714244874,-500.0,0.00027397,2]
[314979888,1708714244884,-458.5851472,0.00027397,2]
[314979889,1708714244996,-48.84995253,0.00027397,2]
[314979890,1708714245006,-286.34875367,0.00027397,2]
[314979891,1708714245337,-9773.212,0.00027297,2]
[314979892,1708714245349,-1450.24816448,0.00027297,2]
[314979893,1708714245363,-1537.17834494,0.00027297,2]
[314979894,1708714245427,-1798.92299058,0.00027297,2]
[314979895,1708714245437,-266.52225003,0.00027397,2]
[314979896,1708714245447,-213.65124633,0.00027397,2]
[314979898,1708714245457,-500.0,0.00027397,2]
[314979899,1708714245467,-501.07487516,0.00027397,2]
[314979900,1708714245477,-500.0,0.00027397,2]
[314979901,1708714245489,-500.0,0.00027397,2]
[314979902,1708714245499,-500.0,0.00027397,2]
[314979903,1708714245509,-500.0,0.00027397,2]
[314979905,1708714245523,-500.0,0.00027397,2]
[314979907,1708714245534,-500.0,0.00027397,2]
[314979908,1708714245544,-500.0,0.00027397,2]
[314979909,1708714245556,-502.89701897,0.00027397,2]